fUST/lending_fUST_20251008
["ID","MTS","AMOUNT","RATE_DAILY","PERIOD"]
[390028455,1759937442006,-500.0,0.00020615,2]
[390028456,1759937442016,-500.0,0.00020615,2]
[390028458,1759937442025,-500.0,0.00020615,2]
[390028460,1759937442035,-500.0,0.00020615,2]
[390028462,1759937442045,-500.0,0.00020615,2]
[390028465,1759937442055,-1107.39,0.00020615,2]
[390028467,1759937442065,-500.0,0.00020615,2]
[390028468,1759937442075,-500.0,0.00020615,2]
[390028470,1759937442084,-517.69344378,0.00020615,2]
[390028472,1759937442093,-3892.35,0.00020615,2]
[390028474,1759937442103,-527.17,0.00020615,2]
[390028476,1759937442112,-671.93,0.00020615,2]
[390028478,1759937442122,-500.0,0.00020615,2]
[390028479,1759937442131,-500.0,0.00020615,2]
[390028482,1759937442140,-500.0,0.00020615,2]
[390028484,1759937442150,-4872.23,0.00020615,2]
[390028485,1759937442160,-467.74460349,0.00020615,2]
[390028487,1759937442169,-500.0,0.00020615,2]
[390028489,1759937442179,-500.0,0.00020615,2]
[390028491,1759937442188,-500.0,0.00020615,2]
[390028493,1759937442197,-4624.8,0.00020615,2]
[390028495,1759937442207,-500.0,0.00020615,2]
[390028497,1759937442217,-701.12,0.00020615,2]
[390028499,1759937442226,-2176.41,0.00020615,2]
[390028501,1759937442235,-2438.24,0.00020615,2]
[390028503,1759937442245,-868.72,0.00020615,2]
[390028505,1759937442254,-500.0,0.00020615,2]
[390028507,1759937442263,-500.0,0.00020615,2]
[390028509,1759937442272,-3261.92,0.00020615,2]
[390028511,1759937442284,-578.21,0.00020615,2]
[390028513,1759937442294,-631.74,0.00020615,2]
[390028515,1759937442304,-879.51,0.00020615,2]
[390028517,1759937442313,-2049.27,0.00020615,2]
[390028519,1759937442322,-725.76,0.00020615,2]
[390028521,1759937442332,-788.24,0.00020615,2]
[390028523,1759937442341,-500.0,0.00020615,2]
[390028525,1759937442350,-500.0,0.00020615,2]
[390028526,1759937442360,-500.0,0.00020615,2]
[390028528,1759937442369,-1122.75,0.00020615,2]
[390028530,1759937442379,-3366.94,0.00020615,2]
[390028532,1759937442389,-27772.43,0.00020615,2]
[390028534,1759937442400,-1481.46,0.00020615,2]
[390028536,1759937442410,-1518.47,0.00020615,2]
[390028538,1759937442419,-500.0,0.00020615,2]
[390028540,1759937442429,-3410.69,0.00020615,2]
[390028542,1759937442438,-500.0,0.00020615,2]
[390028543,1759937442448,-727.01,0.00020615,2]
[390028545,1759937442457,-500.0,0.00020615,2]
[390028547,1759937442467,-1182.12,0.00020615,2]
[390028549,1759937442476,-12060.56,0.00020615,2]
[390028551,1759937442486,-5363.36,0.00020615,2]
[390028553,1759937442495,-500.0,0.00020615,2]
[390028555,1759937442506,-500.0,0.00020615,2]
[390028557,1759937442515,-954.68,0.00020615,2]
[390028559,1759937442525,-1996.52,0.00020615,2]
[390028561,1759937442534,-500.0,0.00020615,2]
[390028563,1759937442544,-601.64,0.00020615,2]
[390028565,1759937442554,-1809.98,0.00020615,2]
[390028567,1759937442563,-1871.38,0.00020615,2]
[390028569,1759937442573,-500.0,0.00020615,2]
[390028571,1759937442583,-1921.57,0.00020615,2]
[390028573,1759937442592,-500.0,0.00020615,2]
[390028575,1759937442602,-25549.18,0.00020615,2]
[390028577,1759937442611,-500.0,0.00020615,2]
[390028578,1759937442620,-500.0,0.00020615,2]
[390028579,1759937442629,-500.0,0.00020615,2]
[390028580,1759937442639,-500.0,0.00020615,2]
[390028581,1759937442647,-2227.38,0.00020615,2]
[390028582,1759937442656,-500.0,0.00020615,2]
[390028583,1759937442667,-500.0,0.00020615,2]
[390028584,1759937442678,-500.0,0.00020615,2]
[390028585,1759937442688,-500.0,0.00020615,2]
[390028586,1759937442697,-500.0,0.00020615,2]
[390028587,1759937442706,-1639.73,0.00020615,2]
[390028588,1759937442715,-5077.29,0.00020615,2]
[390028589,1759937442724,-16580.84,0.00020615,2]
[390028590,1759937442738,-465.67838721,0.00020615,2]
[390028592,1759937442750,-500.0,0.00020615,2]
[390028594,1759937442763,-500.0,0.00020615,2]
[390028596,1759937442773,-3427.56,0.00020615,2]
[390028598,1759937442785,-500.0,0.00020615,2]
[390028600,1759937442795,-500.0,0.00020615,2]
[390028602,1759937442804,-500.0,0.00020615,2]
[390028603,1759937442815,-500.0,0.00020615,2]
[390028604,1759937442824,-952.12,0.00020615,2]
[390028605,1759937442834,-500.0,0.00020615,2]
[390028606,1759937442843,-787.89,0.00020615,2]
[390028607,1759937442852,-10058.96,0.00020615,2]
[390028608,1759937442862,-151.0,0.00020615,7]
[390028609,1759937442871,-151.0,0.00020615,7]
[390028610,1759937442881,-151.0,0.00020615,7]
[390028611,1759937442891,-500.0,0.00020615,2]
[390028612,1759937442901,-708.75,0.00020615,2]
[390028613,1759937442910,-560.95,0.00020615,2]
[390028614,1759937442920,-500.0,0.00020615,2]
[390028615,1759937442930,-6589.74,0.00020615,2]
[390028616,1759937442940,-1403.4,0.00020615,2]
[390028617,1759937442950,-1157.02,0.00020615,2]
[390028618,1759937442959,-500.0,0.00020615,2]
[390028619,1759937442969,-500.0,0.00020615,2]
[390028620,1759937442979,-500.0,0.00020615,2]
[390028621,1759937442989,-402.00603937,0.00020615,2]
[390028622,1759937442998,-500.0,0.00020615,2]
[390028623,1759937443008,-500.0,0.00020615,2]
[390028624,1759937443018,-194.72200446,0.00020615,2]
[390028625,1759937443028,-500.0,0.00020615,2]
[390028626,1759937443038,-838.134005,0.00020615,7]
[390028627,1759937443048,-838.134005,0.00020615,7]
[390028628,1759937443058,-838.134005,0.00020615,7]
[390028629,1759937443067,-838.134005,0.00020615,7]
[390028630,1759937443077,-1171.41,0.00020615,2]
[390028631,1759937443087,-838.134005,0.00020615,7]
[390028632,1759937443097,-838.134005,0.00020615,7]
[390028633,1759937443106,-838.134005,0.00020615,7]
[390028634,1759937443116,-838.134005,0.00020615,7]
[390028635,1759937443125,-151.0,0.00020615,7]
[390028637,1759937443135,-151.0,0.00020615,7]
[390028639,1759937443144,-838.134005,0.00020615,7]
[390028641,1759937443154,-151.0,0.00020615,7]
[390028643,1759937443163,-838.134005,0.00020615,7]
[390028645,1759937443173,-838.134005,0.00020615,7]
[390028647,1759937443183,-838.134005,0.00020615,7]
[390028649,1759937443193,-151.0,0.00020615,7]
[390028651,1759937443202,-151.0,0.00020615,7]
[390028653,1759937443211,-838.134005,0.00020615,7]
[390028655,1759937443221,-151.0,0.00020615,7]
[390028657,1759937443232,-838.134005,0.00020615,7]
[390028659,1759937443241,-3148.95,0.00020615,2]
[390028661,1759937443251,-838.134005,0.00020615,7]
[390028663,1759937443261,-587.92,0.00020615,2]
[390028665,1759937443271,-838.133998,0.00020615,7]
[390028667,1759937443282,-2552.85,0.00020615,2]
[390028669,1759937443291,-151.0,0.00020615,7]
[390028671,1759937443301,-500.0,0.00020615,2]
[390028672,1759937443310,-5439.26,0.00020615,2]
[390028674,1759937443319,-2112.67,0.00020615,2]
[390028676,1759937443329,-1023.03,0.00020615,2]
[390028679,1759937443339,-501.12586889,0.00020615,2]
[390028681,1759937443348,-1712.7,0.00020615,2]
[390028682,1759937443358,-548.87,0.00020615,2]
[390028684,1759937443367,-500.0,0.00020615,2]
[390028686,1759937443376,-2467.83,0.00020615,2]
[390028688,1759937443385,-500.0,0.00020615,2]
[390028690,1759937443395,-1747.76,0.00020615,2]
[390028692,1759937443404,-2865.24,0.00020615,2]
[390028694,1759937443413,-896.57,0.00020615,2]
[390028696,1759937443422,-500.0,0.00020615,2]
[390028698,1759937443431,-500.0,0.00020615,2]
[390028700,1759937443441,-3669.88,0.00020615,2]
[390028702,1759937443450,-500.0,0.00020615,2]
[390028704,1759937443460,-500.0,0.00020615,2]
[390028705,1759937443469,-500.0,0.00020615,2]
[390028706,1759937443479,-500.0,0.00020615,2]
[390028708,1759937443489,-500.0,0.00020615,2]
[390028709,1759937443499,-500.0,0.00020615,2]
[390028711,1759937443509,-500.0,0.00020615,2]
[390028712,1759937443519,-10541.41,0.00020615,2]
[390028713,1759937443530,-1000.0,0.00020615,2]
[390028714,1759937443540,-500.0,0.00020615,2]
[390028715,1759937443550,-500.0,0.00020615,2]
[390028716,1759937443560,-501.78035389,0.00020615,2]
[390028717,1759937443571,-4812.62,0.00020615,2]
[390028718,1759937443580,-500.0,0.00020615,2]
[390028719,1759937443590,-500.0,0.00020615,2]
[390028720,1759937443652,-1788.77,0.00020615,2]
[390028721,1759937443661,-500.0,0.00020615,2]
[390028722,1759937443670,-500.0,0.00020615,2]
[390028723,1759937443679,-3842.73,0.00020615,2]
[390028724,1759937443688,-1493.94,0.00020615,2]
[390028725,1759937443698,-500.0,0.00020615,2]
[390028726,1759937443707,-500.0,0.00020615,2]
[390028727,1759937443717,-4715.07,0.00020615,2]
[390028728,1759937443727,-500.0,0.00020615,2]
[390028729,1759937443741,-693.71,0.00020615,2]
[390028730,1759937443750,-500.0,0.00020615,2]
[390028731,1759937443760,-866.18,0.00020615,2]
[390028732,1759937443769,-500.0,0.00020615,2]
[390028733,1759937443781,-1862.79,0.00020615,2]
[390028734,1759937443790,-500.0,0.00020615,2]
[390028735,1759937443800,-11559.55,0.00020615,2]
[390028736,1759937443810,-500.0,0.00020615,2]
[390028737,1759937443820,-500.0,0.00020615,2]
[390028738,1759937443829,-509.38,0.00020615,2]
[390028739,1759937443839,-500.0,0.00020615,2]
[390028740,1759937443849,-500.0,0.00020615,2]
[390028741,1759937443858,-500.0,0.00020615,2]
[390028742,1759937443867,-500.0,0.00020615,2]
[390028743,1759937443877,-9902.59,0.00020615,2]
[390028744,1759937443887,-500.0,0.00020615,2]
[390028745,1759937443896,-739.05,0.00020615,2]
[390028746,1759937443905,-500.0,0.00020615,2]
[390028747,1759937443916,-500.0,0.00020615,2]
[390028748,1759937443926,-500.0,0.00020615,2]
[390028749,1759937443935,-500.0,0.00020615,2]
[390028750,1759937443945,-500.0,0.00020615,2]
[390028751,1759937443954,-581.45,0.00020615,2]
[390028752,1759937443963,-500.0,0.00020615,2]
[390028753,1759937443973,-151.0,0.00020615,7]
[390028754,1759937443983,-500.0,0.00020615,2]
[390028755,1759937443992,-151.0,0.00020615,7]
[390028756,1759937444003,-500.0,0.00020615,2]
[390028757,1759937444012,-151.0,0.00020615,7]
[390028758,1759937444022,-913.55,0.00020615,2]
[390028759,1759937444035,-500.0,0.00020615,2]
[390028760,1759937444047,-2395.74,0.00020615,2]
[390028761,1759937444057,-151.0,0.00020615,7]
[390028762,1759937444068,-151.0,0.00020615,7]
[390028763,1759937444077,-151.0,0.00020615,7]
[390028764,1759937444087,-500.0,0.00020615,2]
[390028765,1759937444098,-13817.46,0.00020615,2]
[390028766,1759937444108,-500.0,0.00020615,2]
[390028767,1759937444119,-539.86,0.00020615,2]
[390028768,1759937444128,-722.12,0.00020615,2]
[390028769,1759937444138,-805.44,0.00020615,2]
[390028770,1759937444147,-500.0,0.00020615,2]
[390028771,1759937444157,-1938.64,0.00020615,2]
[390028772,1759937444166,-2708.52,0.00020615,2]
[390028773,1759937444175,-500.0,0.00020615,2]
[390028774,1759937444185,-817.13,0.00020615,2]
[390028775,1759937444194,-558.72,0.00020615,2]
[390028776,1759937444203,-667.27,0.00020625,2]
[390028777,1759937444212,-667.27,0.00020625,2]
[390028778,1759937444222,-667.27,0.00020625,2]
[390028779,1759937444231,-667.27,0.00020625,2]
[390028780,1759937444240,-667.27,0.00020625,2]
[390028781,1759937444249,-667.27,0.00020625,2]
[390028782,1759937444259,-667.27,0.00020625,2]
[390028783,1759937444268,-667.27,0.00020625,2]
[390028784,1759937444277,-667.27,0.00020625,2]
[390028785,1759937444287,-667.27,0.00020625,2]
[390028786,1759937444296,-667.27,0.00020625,2]
[390028787,1759937444306,-667.27,0.00020625,2]
[390028788,1759937444316,-667.27,0.00020625,2]
[390028789,1759937444326,-667.27,0.00020625,2]
[390028790,1759937444335,-667.27,0.00020625,2]
[390028791,1759937444344,-667.27,0.00020625,2]
[390028792,1759937444354,-667.27,0.00020625,2]
[390028793,1759937444363,-667.27,0.00020625,2]
[390028794,1759937444373,-500.0,0.00020625,2]
[390028795,1759937444382,-667.27,0.00020625,2]
[390028796,1759937444391,-667.27,0.00020625,2]
[390028797,1759937444401,-667.27,0.00020625,2]
[390028798,1759937444410,-667.27,0.00020625,2]
[390028799,1759937444419,-667.32843396,0.00020625,2]
[390028800,1759937444429,-500.0,0.00020625,2]
[390028801,1759937444439,-500.0,0.00020625,2]
[390028802,1759937444448,-500.0,0.00020625,2]
[390028803,1759937444457,-500.0,0.00020625,2]
[390028804,1759937444467,-500.0,0.00020625,2]
[390028805,1759937444476,-500.0,0.00020625,2]
[390028806,1759937444486,-500.0,0.00020625,2]
[390028807,1759937444496,-500.0,0.00020625,2]
[390028808,1759937444506,-500.0,0.00020625,2]
[390028809,1759937444515,-1107.39,0.00020625,2]
[390028810,1759937444524,-1107.39,0.00020625,2]
[390028811,1759937444535,-1107.39,0.00020625,2]
[390028812,1759937444544,-1107.39,0.00020625,2]
[390028813,1759937444554,-1107.39,0.00020625,2]
[390028814,1759937444563,-1107.39,0.00020625,2]
[390028815,1759937444572,-1107.39,0.00020625,2]
[390028816,1759937444581,-1107.39,0.00020625,2]
[390028817,1759937444591,-1107.39,0.00020625,2]
[390028818,1759937444600,-1107.39,0.00020625,2]
[390028819,1759937444609,-1107.39,0.00020625,2]
[390028820,1759937444619,-1107.39,0.00020625,2]
[390028821,1759937444628,-1107.39,0.00020625,2]
[390028822,1759937444638,-1107.39,0.00020625,2]
[390028823,1759937444647,-1107.39,0.00020625,2]
[390028824,1759937444656,-1107.39,0.00020625,2]
[390028825,1759937444666,-1107.39,0.00020625,2]
[390028826,1759937444675,-1107.39,0.00020625,2]
[390028827,1759937444683,-1368.17,0.00020625,2]
[390028828,1759937444693,-1648.65,0.00020625,2]
[390028829,1759937444702,-1179.83,0.00020625,2]
[390028830,1759937444711,-897.33,0.00020625,2]
[390028831,1759937444720,-5676.99,0.00020625,2]
[390028832,1759937444732,-12114.93,0.00020625,2]
[390028833,1759937444742,-3100.81,0.00020625,2]
[390028834,1759937444751,-952.12,0.00020625,2]
[390028835,1759937444760,-952.12,0.00020625,2]
[390028836,1759937444770,-952.12,0.00020625,2]
[390028837,1759937444780,-952.12,0.00020625,2]
[390028838,1759937444789,-952.12,0.00020625,2]
[390028839,1759937444798,-952.12,0.00020625,2]
[390028840,1759937444808,-952.12,0.00020625,2]
[390028841,1759937444817,-952.12,0.00020625,2]
[390028842,1759937444826,-952.12,0.00020625,2]
[390028843,1759937444835,-952.12,0.00020625,2]
[390028844,1759937444845,-952.12,0.00020625,2]
[390028845,1759937444854,-952.12,0.00020625,2]
[390028846,1759937444863,-952.12,0.00020625,2]
[390028847,1759937444873,-952.12,0.00020625,2]
[390028848,1759937444882,-952.12,0.00020625,2]
[390028849,1759937444892,-952.12,0.00020625,2]
[390028850,1759937444901,-952.12,0.00020625,2]
[390028851,1759937444911,-952.12,0.00020625,2]
[390028852,1759937444920,-151.0,0.00020625,7]
[390028853,1759937444930,-1042.65,0.00020625,2]
[390028854,1759937444940,-465.6943921,0.00020625,2]
[390028855,1759937444949,-151.0,0.00020625,7]
[390028856,1759937444958,-151.0,0.00020625,7]
[390028857,1759937444967,-3585.99,0.00020625,2]
[390028858,1759937444977,-500.0,0.00020625,2]
[390028859,1759937444986,-1724.52,0.00020625,2]
[390028860,1759937444995,-3555.54,0.00020625,2]
[390028861,1759937445004,-1486.0,0.00020625,2]
[390028862,1759937445014,-8155.37,0.00020625,2]
[390028863,1759937445024,-500.0,0.00020625,2]
[390028864,1759937445035,-500.0,0.00020625,2]
[390028865,1759937445044,-500.0,0.00020625,2]
[390028866,1759937445054,-181.06070317,0.00020625,2]
[390028867,1759937445063,-1160.72,0.00020625,2]
[390028868,1759937445072,-500.0,0.00020625,2]
[390028869,1759937445082,-500.0,0.00020625,2]
[390028870,1759937445091,-500.0,0.00020625,2]
[390028871,1759937445100,-500.0,0.00020625,2]
[390028872,1759937445110,-500.0,0.00020625,2]
[390028873,1759937445119,-500.0,0.00020625,2]
[390028874,1759937445129,-500.0,0.00020625,2]
[390028875,1759937445138,-500.0,0.00020625,2]
[390028876,1759937445148,-500.0,0.00020625,2]
[390028877,1759937445157,-329.30100867,0.00020625,2]
[390028878,1759937445167,-1917.81,0.00020625,2]
[390028879,1759937445176,-2137.32,0.00020625,2]
[390028880,1759937445185,-204.276075,0.00020626,7]
[390028881,1759937445194,-151.0,0.00020626,7]
[390028882,1759937445204,-151.0,0.00020626,7]
[390028883,1759937445213,-151.0,0.00020626,7]
[390028884,1759937445223,-151.0,0.00020626,7]
[390028885,1759937445232,-370000.0,0.00020626,2]
[390028886,1759937445242,-500.0,0.00020673,2]
[390028887,1759937445251,-500.0,0.00020673,2]
[390028888,1759937445260,-501.50310014,0.00020673,2]
[390028889,1759937445270,-500.0,0.00020673,2]
[390028890,1759937445279,-500.0,0.00020673,2]
[390028891,1759937445289,-501.05937846,0.00020673,2]
[390028892,1759937445298,-500.0,0.00020673,2]
[390028893,1759937445308,-500.61793112,0.00020673,2]
[390028894,1759937445318,-500.0,0.00020673,2]
[390028895,1759937445327,-500.0,0.00020673,2]
[390028896,1759937445336,-500.0,0.00020673,2]
[390028897,1759937445345,-500.0,0.00020673,2]
[390028898,1759937445355,-500.0,0.00020673,2]
[390028899,1759937445364,-500.0,0.00020673,2]
[390028900,1759937445373,-500.0,0.00020673,2]
[390028901,1759937445383,-500.0,0.00020673,2]
[390028902,1759937445392,-500.0,0.00020673,2]
[390028903,1759937445402,-500.52063912,0.00020673,2]
[390028904,1759937445412,-500.0,0.00020673,2]
[390028905,1759937445421,-150.0,0.00020673,2]
[390028906,1759937445430,-500.0,0.00020673,2]
[390028907,1759937445440,-500.0,0.00020673,2]
[390028908,1759937445449,-500.0,0.00020673,2]
[390028909,1759937445459,-500.0,0.00020673,2]
[390028910,1759937445468,-500.0,0.00020673,2]
[390028911,1759937445477,-420.0,0.00020709,2]
[390028912,1759937445486,-1256.55,0.00020713,2]
[390028913,1759937445496,-2576.05,0.00020721,2]
[390028914,1759937445505,-500.0,0.00020721,2]
[390028915,1759937445515,-500.0,0.00020721,2]
[390028916,1759937445524,-972.01,0.00020721,2]
[390028917,1759937445533,-500.0,0.00020721,2]
[390028918,1759937445542,-999.48,0.00020721,2]
[390028919,1759937445551,-787.75,0.00020721,2]
[390028920,1759937445560,-500.0,0.00020721,2]
[390028921,1759937445569,-500.0,0.00020721,2]
[390028922,1759937445579,-2453.85,0.00020721,2]
[390028923,1759937445588,-978.94,0.00020725,2]
[390028924,1759937445597,-500.0,0.00020725,2]
[390028925,1759937445606,-500.0,0.00020725,2]
[390028926,1759937445616,-8271.92,0.00020725,2]
[390028927,1759937445625,-1320.09,0.00020725,2]
[390028928,1759937445635,-500.0,0.00020725,2]
[390028929,1759937445644,-1256.55,0.00020725,2]
[390028930,1759937445654,-1256.55,0.00020725,2]
[390028932,1759937445663,-1256.55,0.00020725,2]
[390028933,1759937445673,-1256.55,0.00020725,2]
[390028934,1759937445683,-1256.55,0.00020725,2]
[390028935,1759937445694,-1256.55,0.00020725,2]
[390028936,1759937445704,-1256.55,0.00020725,2]
[390028938,1759937445713,-1256.55,0.00020725,2]
[390028939,1759937445725,-1256.55,0.00020725,2]
[390028940,1759937445736,-1256.55,0.00020725,2]
[390028941,1759937445748,-1256.55,0.00020725,2]
[390028942,1759937445758,-1256.55,0.00020725,2]
[390028943,1759937445768,-1256.55,0.00020725,2]
[390028944,1759937445777,-1256.55,0.00020725,2]
[390028945,1759937445788,-1256.55,0.00020725,2]
[390028946,1759937445800,-1256.55,0.00020725,2]
[390028947,1759937445810,-1256.55,0.00020725,2]
[390028948,1759937445821,-1256.55,0.00020725,2]
[390028949,1759937445831,-1256.55,0.00020725,2]
[390028950,1759937445841,-1256.55,0.00020725,2]
[390028951,1759937445850,-1256.70580975,0.00020725,2]
[390028952,1759937445860,-500.0,0.00020735,2]
[390028953,1759937445870,-500.0,0.00020735,2]
[390028954,1759937445881,-500.0,0.00020735,2]
[390028955,1759937445892,-883.17,0.00020735,2]
[390028957,1759937445902,-587.04,0.00020735,2]
[390028959,1759937445912,-500.0,0.00020735,2]
[390028960,1759937445922,-450.42373403,0.00020735,2]
[390028961,1759937445932,-641.77,0.00020735,2]
[390028962,1759937445942,-580.18,0.00020735,2]
[390028963,1759937445952,-500.0,0.00020735,2]
[390028964,1759937445964,-500.0,0.00020735,2]
[390028965,1759937445974,-1107.39,0.00020735,2]
[390028966,1759937445983,-1107.39,0.00020735,2]
[390028967,1759937445994,-1107.39,0.00020735,2]
[390028968,1759937446004,-1107.39,0.00020735,2]
[390028969,1759937446014,-1107.49763903,0.00020735,2]
[390028971,1759937446024,-952.12,0.00020735,2]
[390028973,1759937446036,-952.12,0.00020735,2]
[390028975,1759937446046,-952.12,0.00020735,2]
[390028977,1759937446056,-952.12,0.00020735,2]
[390028979,1759937446066,-952.25013657,0.00020735,2]
[390028981,1759937446075,-5824.05750684,0.00020789,2]
[390028983,1759937446085,-300.0,0.0002081,2]
[390028985,1759937446095,-792.47,0.0002081,2]
[390028987,1759937446105,-500.0,0.0002081,2]
[390028989,1759937446115,-500.0,0.0002081,2]
[390028991,1759937446125,-1686.01,0.0002081,2]
[390028993,1759937446135,-500.0,0.0002081,2]
[390028995,1759937446145,-667.24,0.0002081,2]
[390028997,1759937446155,-2550.31,0.0002081,2]
[390028999,1759937446165,-692.79,0.0002081,2]
[390029001,1759937446174,-3691.34,0.0002081,2]
[390029003,1759937446184,-537.72,0.0002081,2]
[390029005,1759937446194,-9226.94,0.0002081,2]
[390029007,1759937446204,-2676.8,0.0002081,2]
[390029009,1759937446214,-500.0,0.0002081,2]
[390029011,1759937446224,-794.29,0.0002081,2]
[390029013,1759937446234,-6044.21,0.0002081,2]
[390029015,1759937446245,-24658.82,0.0002081,2]
[390029018,1759937446256,-807.89,0.0002081,2]
[390029020,1759937446266,-15075.12,0.0002081,2]
[390029022,1759937446275,-2438.57,0.00020811,2]
[390029024,1759937446288,-2008.58,0.00020811,2]
[390029026,1759937446297,-500.0,0.00020811,2]
[390029028,1759937446308,-5209.17,0.00020811,2]
[390029030,1759937446317,-2108.78,0.00020811,2]
[390029032,1759937446327,-1051.69,0.00020811,2]
[390029034,1759937446336,-1211.23,0.00020811,2]
[390029036,1759937446346,-500.0,0.00020811,2]
[390029038,1759937446355,-500.0,0.00020811,2]
[390029040,1759937446365,-481.10026427,0.00020811,2]
[390029042,1759937446374,-502.13104666,0.00020811,2]
[390029044,1759937446384,-500.0,0.00020811,2]
[390029046,1759937446393,-500.0,0.00020811,2]
[390029047,1759937446403,-500.0,0.00020811,2]
[390029049,1759937446412,-1674.52,0.00020811,2]
[390029052,1759937446422,-6237.73,0.00020811,2]
[390029054,1759937446433,-1493.6,0.00020811,2]
[390029056,1759937446442,-727.63,0.00020811,2]
[390029058,1759937446452,-2038.01,0.00020811,2]
[390029060,1759937446462,-500.0,0.00020811,2]
[390029062,1759937446471,-1092.14,0.00020811,2]
[390029064,1759937446481,-500.0,0.00020811,2]
[390029066,1759937446490,-520.07,0.00020811,2]
[390029068,1759937446500,-638.77,0.00020811,2]
[390029070,1759937446511,-500.0,0.00020811,2]
[390029072,1759937446521,-1482.51,0.00020811,2]
[390029074,1759937446531,-756.15,0.00020811,2]
[390029076,1759937446543,-6586.75,0.00020811,2]
[390029078,1759937446553,-1086.15,0.00020811,2]
[390029080,1759937446564,-1498.81,0.00020811,2]
[390029082,1759937446575,-678.25,0.00020811,2]
[390029084,1759937446586,-500.0,0.00020811,2]
[390029086,1759937446596,-724.78,0.00020811,2]
[390029088,1759937446607,-1714.47,0.00020811,2]
[390029090,1759937446618,-1084.8,0.00020811,2]
[390029091,1759937446628,-964.42,0.00020811,2]
[390029094,1759937446638,-772.17,0.00020811,2]
[390029096,1759937446648,-1405.49,0.00020811,2]
[390029098,1759937446657,-579.47,0.00020811,2]
[390029100,1759937446668,-1946.92,0.00020811,2]
[390029102,1759937446678,-1018.24,0.00020811,2]
[390029104,1759937446688,-6706.5,0.00020811,2]
[390029106,1759937446698,-1409.33,0.00020811,2]
[390029108,1759937446708,-1277.28,0.00020811,2]
[390029110,1759937446718,-500.0,0.00020811,2]
[390029112,1759937446728,-500.0,0.00020811,2]
[390029115,1759937446738,-849.37,0.00020811,2]
[390029117,1759937446749,-746.75,0.00020811,2]
[390029119,1759937446763,-500.0,0.00020811,2]
[390029121,1759937446776,-987.8,0.00020888,2]
[390029123,1759937446791,-500.0,0.00020888,2]
[390029125,1759937446801,-500.0,0.00020888,2]
[390029127,1759937446812,-500.0,0.00020888,2]
[390029129,1759937446823,-2318.22,0.00020888,2]
[390029131,1759937446832,-500.0,0.00020888,2]
[390029133,1759937446843,-1365.82,0.00020888,2]
[390029135,1759937446853,-500.0,0.00020888,2]
[390029137,1759937446863,-8668.28,0.00020888,2]
[390029139,1759937446873,-2917.71,0.00020888,2]
[390029141,1759937446883,-500.0,0.00020888,2]
[390029143,1759937446893,-4340.88,0.00020888,2]
[390029146,1759937446903,-500.0,0.00020888,2]
[390029148,1759937446913,-4310.13,0.00020888,2]
[390029149,1759937446923,-11227.08,0.00020888,2]
[390029151,1759937446932,-500.0,0.00020888,2]